fUST/lending_fUST_20250529
["ID","MTS","AMOUNT","RATE_DAILY","PERIOD"]
[362783297,1748455843778,-500.0,0.000209,7]
[362783298,1748455843787,-500.0,0.000209,7]
[362783299,1748455843796,-500.0,0.000209,7]
[362783300,1748455843806,-500.0,0.000209,7]
[362783301,1748455843816,-500.0,0.000209,7]
[362783302,1748455843825,-500.0,0.000209,7]
[362783303,1748455843835,-500.0,0.000209,7]
[362783304,1748455843845,-500.0,0.000209,7]
[362783305,1748455843854,-500.0,0.000209,7]
[362783306,1748455843864,-500.0,0.000209,7]
[362783307,1748455843874,-591.9,0.000209,7]
[362783308,1748455843885,-500.0,0.000209,7]
[362783309,1748455843895,-500.0,0.000209,7]
[362783310,1748455843904,-205.0,0.0002091,2]
[362783311,1748455843914,-2981.0537511,0.00020934,4]
[362783312,1748455843924,-617.68429535,0.00020995,2]
[362783313,1748455843934,-2000.0,0.00021,2]
[362783314,1748455843944,-1000.0,0.00021,2]
[362783315,1748455843954,-7162.0,0.00021,10]
[362783316,1748455843964,-151.0,0.00021,2]
[362783317,1748455843973,-3000.0,0.00021016,2]
[362783318,1748455843983,-1200.0,0.0002106,2]
[362783319,1748455843992,-1500.0,0.00021068,2]
[362783320,1748455844003,-158.963368,0.00021072,14]
[362783321,1748455844013,-160.0,0.00021091,3]
[362783322,1748455844023,-430.0,0.00021094,2]
[362783323,1748455844032,-1358.23,0.00021094,2]
[362783324,1748455844041,-430.0,0.00021094,2]
[362783325,1748455844051,-430.0,0.00021094,2]
[362783326,1748455844060,-430.0,0.00021094,2]
[362783327,1748455844069,-654.08,0.00021094,2]
[362783328,1748455844079,-430.0,0.00021094,2]
[362783329,1748455844088,-552.3,0.00021095,2]
[362783330,1748455844098,-430.0,0.00021095,2]
[362783331,1748455844107,-430.0,0.00021095,2]
[362783332,1748455844116,-201.1,0.00021095,2]
[362783333,1748455844125,-430.0,0.00021095,2]
[362783334,1748455844134,-2518.41,0.00021095,2]
[362783335,1748455844143,-430.0,0.00021095,2]
[362783336,1748455844153,-1293.2,0.00021095,2]
[362783337,1748455844162,-2981.0537511,0.00021107,4]
[362783338,1748455844171,-158.963368,0.0002112,7]
[362783339,1748455844181,-600.0,0.0002112,2]
[362783340,1748455844191,-205.0,0.0002113,2]
[362783341,1748455844201,-151.0,0.000212,3]
[362783342,1748455844210,-151.0,0.000212,3]
[362783343,1748455844219,-5000.0,0.00021231,2]
[362783344,1748455844228,-2981.0537511,0.00021279,5]
[362783345,1748455844238,-1142.51087108,0.0002134,2]
[362783346,1748455844247,-3000.0,0.00021342,2]
[362783347,1748455844256,-205.0,0.0002135,2]
[362783348,1748455844265,-1358.23,0.00021368,2]
[362783349,1748455844275,-430.0,0.00021368,2]
[362783350,1748455844284,-430.0,0.00021368,2]
[362783351,1748455844293,-430.0,0.00021368,2]
[362783352,1748455844302,-654.08,0.00021368,2]
[362783353,1748455844311,-430.0,0.00021368,2]
[362783354,1748455844320,-552.3,0.00021369,2]
[362783355,1748455844329,-430.0,0.00021369,2]
[362783356,1748455844338,-430.0,0.00021369,2]
[362783357,1748455844348,-165.199446,0.00021369,2]
[362783358,1748455844357,-430.0,0.00021369,2]
[362783359,1748455844366,-2518.41,0.00021369,2]
[362783360,1748455844374,-430.0,0.00021369,2]
[362783361,1748455844383,-1293.2,0.00021369,2]
[362783362,1748455844391,-151.0,0.000214,4]
[362783363,1748455844400,-151.0,0.000214,3]
[362783364,1748455844409,-58125.14840044,0.00021427,2]
[362783365,1748455844417,-2981.0537511,0.00021452,5]
[362783366,1748455844426,-2000.0,0.000215,2]
[362783367,1748455844435,-151.0,0.000215,3]
[362783368,1748455844444,-151.0,0.000215,4]
[362783369,1748455844453,-151.0,0.000215,4]
[362783370,1748455844462,-151.0,0.000215,3]
[362783371,1748455844470,-205.0,0.0002156,2]
[362783372,1748455844480,-165.78476889,0.000216,2]
[362783373,1748455844488,-2000.0,0.00021616,2]
[362783374,1748455844497,-2981.0537511,0.00021624,5]
[362783375,1748455844506,-1358.23,0.00021642,2]
[362783376,1748455844514,-430.0,0.00021642,2]
[362783377,1748455844522,-430.0,0.00021642,2]
[362783378,1748455844530,-430.0,0.00021642,2]
[362783379,1748455844540,-654.08,0.00021642,2]
[362783380,1748455844548,-430.0,0.00021642,2]
[362783381,1748455844563,-552.3,0.00021643,2]
[362783382,1748455844573,-430.0,0.00021643,2]
[362783383,1748455844581,-430.0,0.00021643,2]
[362783384,1748455844590,-430.0,0.00021643,2]
[362783385,1748455844599,-2518.41,0.00021643,2]
[362783386,1748455844608,-425.81570145,0.00021643,2]
[362783387,1748455844618,-1293.2,0.00021643,2]
[362783388,1748455844627,-160.0,0.0002168,4]
[362783389,1748455844637,-156883.1628996,0.000217,4]
[362783390,1748455844646,-1742.64185625,0.00021748,3]
[362783391,1748455844656,-5000.0,0.00021779,2]
[362783392,1748455844665,-205.0,0.0002178,2]
[362783393,1748455844675,-2981.0537511,0.00021797,6]
[362783394,1748455844684,-2000.0,0.000218,2]
[362783395,1748455844695,-299.26,0.000218,5]
[362783396,1748455844705,-1371.0,0.00021859,2]
[362783397,1748455844714,-151.73203158,0.00021873,2]
[362783398,1748455844723,-400.0,0.000219,7]
[362783399,1748455844732,-2000.0,0.000219,2]
[362783400,1748455844742,-2393.18,0.000219,2]
[362783401,1748455844751,-2000.0,0.000219,2]
[362783402,1748455844760,-1102.904728,0.000219,2]
[362783403,1748455844769,-223.0315306,0.00021903,2]
[362783404,1748455844779,-1358.23,0.00021916,2]
[362783405,1748455844788,-430.0,0.00021916,2]
[362783406,1748455844798,-249.60019232,0.00021916,2]
[362783407,1748455844807,-430.0,0.00021916,2]
[362783408,1748455844816,-654.08,0.00021916,2]
[362783409,1748455844825,-430.0,0.00021916,2]
[362783410,1748455844835,-289.63508392,0.00021917,2]
[362783411,1748455844844,-552.3,0.00021917,2]
[362783412,1748455844854,-457.08370594,0.00021917,2]
[362783413,1748455844864,-430.0,0.00021917,2]
[362783414,1748455844873,-720.0,0.00021917,2]
[362783415,1748455844883,-500.0,0.00021917,2]
[362783416,1748455844892,-430.0,0.00021917,2]
[362783417,1748455844901,-2518.41,0.00021917,2]
[362783418,1748455844911,-506.4986655,0.00021917,2]
[362783419,1748455844920,-154.52993123,0.00021917,2]
[362783420,1748455844929,-1293.2,0.00021917,2]
[362783421,1748455844938,-162.589635,0.00021918,2]
[362783422,1748455844949,-2981.0537511,0.00021969,6]
[362783423,1748455844958,-503.69894942,0.00021973,2]
[362783424,1748455844967,-500.0,0.00021973,2]
[362783425,1748455844976,-500.0,0.00021973,2]
[362783426,1748455844985,-499.0,0.00021973,2]
[362783427,1748455844995,-501.37879744,0.00021973,2]
[362783428,1748455845003,-500.0,0.00021973,2]
[362783429,1748455845012,-500.0,0.00021973,2]
[362783430,1748455845022,-500.0,0.00021973,2]
[362783431,1748455845031,-600.0,0.00021973,2]
[362783432,1748455845041,-500.0,0.00021973,2]
[362783433,1748455845051,-155.0,0.00021999,2]
[362783434,1748455845156,-94940.1272366,0.00022,2]
[362783435,1748455845182,-155.00111858,0.00022,2]
[362783436,1748455845193,-300.39351815,0.00022,5]
[362783437,1748455845203,-56069.09060621,0.00022,2]
[362783438,1748455845213,-8004.43061749,0.00022,2]
[362783439,1748455845224,-500.0,0.00022,2]
[362783440,1748455845234,-500.0,0.00022,2]
[362783441,1748455845243,-15384.09,0.00022,2]
[362783442,1748455845254,-1680.58,0.00022,7]
[362783443,1748455845263,-2000.0,0.00022,2]
[362783444,1748455845273,-3992.0,0.00022,2]
[362783445,1748455845282,-2000.0,0.00022,2]
[362783446,1748455845291,-2279.44,0.00022,2]
[362783447,1748455845301,-1006.20943863,0.00022,2]
[362783448,1748455845311,-54904.54190011,0.00022,7]
[362783453,1748455883378,15000.0,0.00021917,30]
[362783479,1748457032070,-300.0,0.00017999,2]
[362783480,1748457032080,-905.41233227,0.00017999,2]
[362783481,1748457032126,-294.58766773,0.00017999,2]
[362783482,1748457032135,-1665.41233227,0.00018,2]
[362783737,1748457040176,-531.84308389,0.00017999,2]
[362783739,1748457040185,-506.66307723,0.00018,2]
[362783741,1748457040194,-25736.76422966,0.00018,2]
[362783743,1748457040204,-232.959739,0.0001819,2]
[362783745,1748457040215,-24900.0,0.0001859,2]
[362783747,1748457040224,-206.480939,0.00018866,2]
[362783749,1748457040234,-160.0,0.00018868,2]
[362783751,1748457040249,-619.54892123,0.00018868,2]
[362783753,1748457040258,-160.0,0.00018868,2]
[362783755,1748457040267,-1100.0,0.00018868,2]
[362783757,1748457040276,-2054.96016046,0.000189,2]
[362783759,1748457040285,-150.9783192,0.00018994,2]
[362783761,1748457040294,-160.3320729,0.00019094,2]
[362783763,1748457040303,-500.0,0.00019106,2]
[362783765,1748457040313,-494.08402824,0.00019106,2]
[362783767,1748457040322,-500.0,0.00019106,2]
[362783769,1748457040331,-478.93298613,0.00019106,2]
[362783771,1748457040340,-500.0,0.00019106,2]
[362783773,1748457040349,-597.58742613,0.00019106,2]
[362783775,1748457040358,-2054.96016017,0.00019107,2]
[362783777,1748457040368,-207.4,0.00019165,2]
[362783779,1748457040377,-5000.0,0.00019165,2]
[362783781,1748457040386,-916.02,0.00019178,2]
[362783783,1748457040396,-430.0,0.00019178,2]
[362783785,1748457040405,-430.0,0.00019178,2]
[362783787,1748457040414,-430.0,0.00019178,2]
[362783789,1748457040423,-430.0,0.00019178,2]
[362783791,1748457040433,-1783.87,0.00019178,2]
[362783793,1748457040442,-962.08,0.00019178,2]
[362783795,1748457040451,-430.0,0.00019178,2]
[362783797,1748457040460,-430.0,0.00019178,2]
[362783799,1748457040470,-430.0,0.00019178,2]
[362783801,1748457040479,-520.32,0.00019178,2]
[362783803,1748457040488,-430.0,0.00019178,2]
[362783805,1748457040497,-1692.31,0.00019178,2]
[362783807,1748457040506,-430.0,0.00019178,2]
[362783821,1748457040515,-463.3,0.00019178,2]
[362783823,1748457040639,-2054.96016017,0.00019314,2]
[362783825,1748457040649,-405.0,0.00019414,2]
[362783827,1748457040658,-500.0,0.00019443,2]
[362783829,1748457040667,-160.0,0.00019445,2]
[362783831,1748457040678,-423.24161968,0.00019446,2]
[362783833,1748457040687,-229.229959,0.00019446,2]
[362783835,1748457040696,-916.02,0.00019452,2]
[362783837,1748457040707,-430.0,0.00019452,2]
[362783839,1748457040724,-430.0,0.00019452,2]
[362783841,1748457040735,-430.0,0.00019452,2]
[362783843,1748457040743,-430.0,0.00019452,2]
[362783845,1748457040752,-1783.87,0.00019452,2]
[362783846,1748457040762,-962.08,0.00019452,2]
[362783849,1748457040772,-430.0,0.00019452,2]
[362783850,1748457040784,-430.0,0.00019452,2]
[362783853,1748457040799,-430.0,0.00019452,2]
[362783855,1748457040810,-430.0,0.00019452,2]
[362783856,1748457040820,-1692.31,0.00019452,2]
[362783858,1748457040830,-430.0,0.00019452,2]
[362783860,1748457040839,-463.3,0.00019452,2]
[362783862,1748457040848,-500.0,0.00019452,2]
[362783864,1748457040857,-2054.96016017,0.00019521,2]
[362783866,1748457040866,-420.0,0.00019639,2]
[362783868,1748457040875,-5000.0,0.00019713,2]
[362783870,1748457040885,-916.02,0.00019726,2]
[362783872,1748457040894,-430.0,0.00019726,2]
[362783874,1748457040903,-480.0,0.00019726,2]
[362783876,1748457040912,-430.0,0.00019726,2]
[362783878,1748457040921,-430.0,0.00019726,2]
[362783880,1748457040930,-1783.87,0.00019726,2]
[362783882,1748457040940,-962.08,0.00019726,2]
[362783884,1748457040949,-430.0,0.00019726,2]
[362783886,1748457040958,-430.0,0.00019726,2]
[362783888,1748457040968,-430.0,0.00019726,2]
[362783890,1748457040979,-152.05046833,0.00019726,2]
[362783892,1748457040988,-154.83982762,0.00019726,2]
[362783894,1748457040998,-151.0,0.00019726,2]
[362783896,1748457041008,-151.0,0.00019726,2]
[362783898,1748457041016,-500.0,0.00019726,2]
[362783900,1748457041027,-151.26819811,0.00019726,2]
[362783902,1748457041037,-151.0,0.00019726,2]
[362783904,1748457041047,-430.0,0.00019726,2]
[362783906,1748457041057,-1692.31,0.00019726,2]
[362783908,1748457041067,-199.66739034,0.00019726,2]
[362783910,1748457041076,-198.0,0.00019726,2]
[362783912,1748457041085,-151.0,0.00019726,2]
[362783914,1748457041095,-199.71204124,0.00019726,2]
[362783916,1748457041104,-430.0,0.00019726,2]
[362783918,1748457041113,-500.0,0.00019726,2]
[362783920,1748457041122,-151.0,0.00019726,2]
[362783922,1748457041131,-152.81150538,0.00019726,2]
[362783924,1748457041141,-463.3,0.00019726,2]
[362783926,1748457041150,-2054.96016017,0.00019728,2]
[362783928,1748457041159,-480.0,0.00019735,2]
[362783930,1748457041167,-152.32644041,0.00019753,2]
[362783932,1748457041177,-188.99768613,0.00019753,2]
[362783934,1748457041186,-501.48568543,0.00019753,2]
[362783936,1748457041195,-151.0,0.00019753,2]
[362783938,1748457041204,-198.0,0.00019753,2]
[362783940,1748457041213,-350.46759534,0.00019753,2]
[362783942,1748457041222,-500.0,0.00019792,2]
[362783944,1748457041231,-1182.49721224,0.00019817,2]
[362783946,1748457041241,-660.65860953,0.000199,2]
[362783947,1748457041250,-500.0,0.00019908,2]
[362783949,1748457041258,-2054.96016017,0.00019934,2]
[362783951,1748457041267,-1100.0,0.00019964,2]
[362783953,1748457041277,-430.0,0.00019997,2]
[362783955,1748457041286,-430.0,0.00019997,2]
[362783957,1748457041295,-430.0,0.00019997,2]
[362783959,1748457041304,-430.0,0.00019997,2]
[362783961,1748457041313,-430.0,0.00019997,2]
[362783963,1748457041322,-151.0,0.00019998,2]
[362783965,1748457041331,-199.3954112,0.00019998,2]
[362783967,1748457041340,-151.0,0.00019998,2]
[362783969,1748457041349,-5078.09648842,0.00019998,2]
[362783971,1748457041358,-3026.0,0.0002,2]
[362783973,1748457041367,-3026.0,0.0002,2]
[362783975,1748457041376,-3026.0,0.0002,2]
[362783977,1748457041385,-3026.0,0.0002,2]
[362783979,1748457041395,-157.92,0.0002,2]
[362783981,1748457041404,-916.02,0.0002,2]
[362783983,1748457041414,-430.0,0.0002,2]
[362783985,1748457041423,-198.0,0.0002,2]
[362783987,1748457041432,-430.0,0.0002,2]
[362783989,1748457041442,-1783.87,0.0002,2]
[362783991,1748457041451,-962.08,0.0002,2]
[362783993,1748457041460,-430.0,0.0002,2]
[362783995,1748457041469,-430.0,0.0002,2]
[362783997,1748457041479,-1692.31,0.0002,2]
[362783999,1748457041488,-430.0,0.0002,2]
[362784001,1748457041497,-463.3,0.0002,2]
[362784003,1748457041505,-151.0,0.00020025,2]
[362784005,1748457041515,-221.87044723,0.00020025,2]
[362784007,1748457041523,-500.0,0.00020029,2]
[362784009,1748457041534,-500.0,0.00020029,2]
[362784011,1748457041543,-500.0,0.00020042,2]
[362784013,1748457041552,-500.0,0.00020042,2]
[362784015,1748457041560,-506.94147846,0.00020042,2]
[362784017,1748457041570,-231.12931022,0.00020113,2]
[362784019,1748457041579,-2054.96016017,0.00020141,2]
[362784021,1748457041588,-172.918,0.00020171,2]
[362784023,1748457041599,-310.261,0.000202,2]
[362784025,1748457041608,-5000.0,0.00020261,2]
[362784027,1748457041617,-430.0,0.00020271,2]
[362784029,1748457041627,-430.0,0.00020271,2]
[362784031,1748457041636,-430.0,0.00020271,2]
[362784033,1748457041645,-430.0,0.00020271,2]
[362784035,1748457041655,-430.0,0.00020271,2]
[362784037,1748457041664,-916.02,0.00020273,2]
[362784039,1748457041673,-430.0,0.00020273,2]
[362784041,1748457041683,-430.0,0.00020273,2]
[362784043,1748457041692,-1783.87,0.00020273,2]
[362784045,1748457041702,-962.08,0.00020273,2]
[362784047,1748457041711,-430.0,0.00020273,2]
[362784049,1748457041721,-430.0,0.00020273,2]
[362784051,1748457041730,-1692.31,0.00020273,2]
[362784053,1748457041739,-430.0,0.00020273,2]
[362784055,1748457041748,-463.3,0.00020273,2]
[362784057,1748457041757,-1000.0,0.0002034,2]
[362784059,1748457041766,-2054.96016017,0.00020348,3]
[362784061,1748457041775,-500.0,0.00020364,2]
[362784062,1748457041785,-376.7740118,0.00020364,2]
[362784064,1748457041794,-660.65860952,0.000204,2]
[362784066,1748457041803,-215.0738,0.00020534,2]
[362784068,1748457041813,-430.0,0.00020545,2]
[362784070,1748457041822,-430.0,0.00020545,2]
[362784072,1748457041831,-430.0,0.00020545,2]
[362784074,1748457041840,-430.0,0.00020545,2]
[362784076,1748457041849,-916.02,0.00020547,2]
[362784078,1748457041858,-430.0,0.00020547,2]
[362784080,1748457041867,-430.0,0.00020547,2]
[362784082,1748457041876,-1783.87,0.00020547,2]
[362784083,1748457041885,-962.08,0.00020547,2]
[362784084,1748457041897,-430.0,0.00020547,2]
[362784085,1748457041910,-430.0,0.00020547,2]
[362784086,1748457041922,-1692.31,0.00020547,2]
[362784087,1748457041934,-430.0,0.00020547,2]
[362784088,1748457041946,-463.3,0.00020547,2]
[362784089,1748457041957,-2054.96016017,0.00020555,3]
[362784090,1748457041966,-2054.96016017,0.00020762,3]
[362784091,1748457041977,-5000.0,0.00020809,2]
[362784092,1748457041991,-430.0,0.00020819,2]
[362784093,1748457042002,-430.0,0.00020819,2]
[362784094,1748457042012,-916.02,0.00020821,2]
[362784095,1748457042023,-252.39012272,0.00020821,2]
[362784096,1748457042034,-430.0,0.00020821,2]
[362784097,1748457042045,-1783.87,0.00020821,2]
[362784098,1748457042058,-962.08,0.00020821,2]
[362784099,1748457042068,-430.0,0.00020821,2]
[362784100,1748457042078,-430.0,0.00020821,2]
[362784102,1748457042089,-1692.31,0.00020821,2]
[362784105,1748457042100,-430.0,0.00020821,2]
[362784107,1748457042112,-463.3,0.00020821,2]
[362784109,1748457042122,-1500.0,0.00020888,2]
[362784111,1748457042135,-177.81593263,0.000209,2]
[362784125,1748457042256,-482.84267689,0.000209,2]
[362784127,1748457042268,-610.40399336,0.00020969,4]
[362784510,1748457046066,-300.0,0.00017999,2]
[362784512,1748457046077,-788.33147483,0.000189,2]
[362784514,1748457046086,-420.0,0.00019639,2]
[362784516,1748457046096,-652.34292687,0.00020969,4]
[362784524,1748457046174,-792.21323994,0.00020969,4]
[362784526,1748457046183,-1129.29146224,0.0002099,2]
[362788565,1748457219643,162.589635,0.00013699,2]
[362788585,1748458232384,-260.67862219,0.00018422,2]
[362788586,1748458232394,-5000.0,0.00018436,2]
[362788587,1748458232405,-232.9597391,0.00018726,2]
[362788588,1748458232415,-1000.0,0.00018868,2]
[362788589,1748458232426,-869.53838417,0.000189,2]
[362788590,1748458232436,-1200.0,0.00019175,2]
[362788591,1748458232445,-423.24161968,0.00019176,2]
[362788592,1748458232456,-229.229959,0.00019176,2]
[362788593,1748458232467,-160.0,0.00019176,2]
[362788594,1748458232476,-300.0,0.00019176,2]
[362788595,1748458232486,-300.0,0.00019177,2]
[362788596,1748458232495,-430.0,0.00019178,2]
[362788597,1748458232505,-176.2681598,0.00019178,2]
[362788598,1748458232515,-207.4,0.00019318,2]
[362788599,1748458232525,-151.0,0.00019318,2]
[362788600,1748458232535,-870.88529141,0.00019329,2]
[362788601,1748458232547,-924.31477675,0.00019329,2]
[362788602,1748458232557,-405.0,0.00019442,2]
[362788603,1748458232567,-150.463,0.00019442,2]
[362788604,1748458232576,-430.0,0.00019452,2]
[362788605,1748458232586,-430.0,0.00019726,2]
[362788606,1748458232596,-150.9783192,0.00019897,2]
[362788607,1748458232606,-613.78549308,0.000199,2]
[362788608,1748458232615,-430.0,0.00019963,2]
[362788609,1748458232625,-1000.0,0.00019964,2]
[362788610,1748458232634,-359.12316684,0.00019972,2]
[362788611,1748458232644,-1272.36,0.00019972,2]
[362788612,1748458232653,-430.0,0.00019972,2]
[362788613,1748458232663,-430.0,0.00019972,2]
[362788614,1748458232672,-430.0,0.00019972,2]
[362788615,1748458232681,-501.44768991,0.00019973,2]
[362788616,1748458232691,-500.0,0.00019973,2]
[362788617,1748458232702,-501.3893892,0.00019973,2]
[362788618,1748458232714,-345.5081096,0.00019975,2]
[362788619,1748458232727,-5000.0,0.00019976,2]
[362788620,1748458232740,-180.1878028,0.00019976,2]
[362788621,1748458232752,-681.47,0.00019997,2]
[362788622,1748458232764,-430.0,0.00019997,2]
[362788623,1748458232776,-1263.58,0.00019997,2]
[362788624,1748458232787,-648.85,0.00019998,2]
[362788625,1748458232798,-500.0,0.00019999,2]
[362788626,1748458232808,-500.0,0.00019999,2]
[362788627,1748458232821,-618.31119829,0.00019999,2]
[362788628,1748458232832,-345.85881977,0.00019999,2]
[362788629,1748458232843,-185.25309029,0.00019999,2]
[362788630,1748458232855,-169.21905138,0.00019999,2]
[362788631,1748458232867,-575.6103703,0.00019999,2]
[362788632,1748458232878,-278.65870297,0.00019999,2]
[362788633,1748458232890,-195.06109208,0.00019999,2]
[362788634,1748458232903,-37267.60307354,0.0002,2]
[362788635,1748458232914,-9310.43676949,0.0002,3]
[362788636,1748458232925,-258465.58264331,0.0002,2]
[362788637,1748458232941,-1249.35049649,0.0002,2]
[362788638,1748458232960,-879.34758048,0.0002,2]
[362788659,1748458238379,-653.08,0.00019972,2]
[362788660,1748458238390,-430.0,0.00019998,2]
[362788661,1748458238402,-92456.42306442,0.0002,2]
[362788664,1748458238414,-430.0,0.0002,2]
[362788666,1748458238425,-500.0,0.0002,2]
[362788667,1748458238436,-157.89,0.0002,2]
[362788668,1748458238449,-613.78549304,0.0002002,2]
[362788669,1748458238462,-151.0,0.00020072,2]
[362788670,1748458238473,-151.0,0.00020072,2]
[362788671,1748458238485,-198.0,0.00020072,2]
[362788672,1748458238498,-151.0,0.00020099,2]
[362788673,1748458238521,-151.0,0.00020099,2]
[362788674,1748458238537,-246.10380235,0.00020127,2]
[362788675,1748458238549,-151.0,0.00020127,2]
[362788676,1748458238560,-613.78549304,0.0002014,2]
[362788677,1748458238571,-1272.36,0.00020246,2]
[362788678,1748458238582,-430.0,0.00020246,2]
[362788679,1748458238593,-430.0,0.00020246,2]
[362788680,1748458238603,-430.0,0.00020246,2]
[362788681,1748458238614,-653.08,0.00020246,2]
[362788682,1748458238625,-613.78549304,0.0002026,2]
[362788683,1748458238638,-430.0,0.00020271,2]
[362788684,1748458238649,-1263.58,0.00020271,2]
[362788685,1748458238663,-648.85,0.00020272,2]
[362788686,1748458238676,-430.0,0.00020272,2]
[362788687,1748458238688,-430.0,0.00020273,2]
[362788688,1748458238699,-505.16711817,0.00020274,2]
[362788689,1748458238710,-613.78549304,0.0002038,2]
[362788690,1748458238720,-172.91821423,0.00020466,2]
[362788691,1748458238732,-248.208,0.0002048,2]
[362788692,1748458238742,-1272.36,0.0002052,2]
[362788693,1748458238753,-430.0,0.0002052,2]
[362788694,1748458238763,-430.0,0.0002052,2]
[362788695,1748458238775,-430.0,0.0002052,2]
[362788696,1748458238786,-653.08,0.0002052,2]
[362788697,1748458238800,-1000.0,0.00020521,2]
[362788698,1748458238811,-5000.0,0.00020524,2]
[362788699,1748458238821,-430.0,0.00020545,2]
[362788700,1748458238832,-1263.58,0.00020545,2]
[362788701,1748458238842,-648.85,0.00020546,2]
[362788702,1748458238852,-430.0,0.00020546,2]
[362788703,1748458238862,-430.0,0.00020547,2]
[362788704,1748458238873,-215.0738,0.00020687,2]
[362788705,1748458238883,-1272.36,0.00020794,2]
[362788706,1748458238894,-430.0,0.00020794,2]
[362788707,1748458238905,-430.0,0.00020794,2]
[362788708,1748458238919,-430.0,0.00020794,2]
[362788709,1748458238930,-653.08,0.00020794,2]
[362788710,1748458238941,-430.0,0.00020819,2]
[362788711,1748458238952,-1263.58,0.00020819,2]
[362788712,1748458238964,-648.85,0.0002082,2]
[362788713,1748458238975,-536.8567253,0.0002082,2]
[362788714,1748458238986,-430.0,0.00020821,2]
[362788715,1748458238998,-420.0,0.00020898,2]
[362788716,1748458239010,-250.0,0.00020959,2]
[362788717,1748458239021,-1000.0,0.0002106,2]
[362788718,1748458239033,-1272.36,0.00021068,2]
[362788719,1748458239044,-430.0,0.00021068,2]
[362788720,1748458239054,-430.0,0.00021068,2]
[362788721,1748458239066,-430.0,0.00021068,2]
[362788722,1748458239077,-653.08,0.00021068,2]
[362788723,1748458239087,-1500.0,0.00021068,2]
[362788724,1748458239102,-5000.0,0.00021072,2]
[362788725,1748458239114,-160.77678849,0.00021093,2]
[362788726,1748458239125,-1263.58,0.00021093,2]
[362788727,1748458239137,-648.85,0.00021094,2]
[362788728,1748458239149,-430.0,0.00021095,2]
[362788729,1748458239161,-1272.36,0.00021342,2]
[362788730,1748458239172,-430.0,0.00021342,2]
[362788731,1748458239183,-430.0,0.00021342,2]
[362788732,1748458239194,-430.0,0.00021342,2]
[362788733,1748458239205,-653.08,0.00021342,2]
[362788734,1748458239216,-1263.58,0.00021367,2]
[362788735,1748458239227,-648.85,0.00021368,2]
[362788736,1748458239239,-430.0,0.00021369,2]
[362788737,1748458239250,-1730.386,0.00021454,15]
[362788738,1748458239261,-500.0,0.000215,2]
[362788739,1748458239273,-500.0,0.000215,2]
[362788740,1748458239283,-500.0,0.000215,2]
[362788741,1748458239294,-373.45253406,0.000215,2]
[362788742,1748458239305,-503.74100675,0.000215,2]
[362788743,1748458239315,-500.0,0.000215,2]
[362788744,1748458239326,-500.0,0.000215,2]
[362788745,1748458239336,-511.62632684,0.000215,2]
[362788746,1748458239346,-202.319471,0.0002156,3]
[362788747,1748458239358,-151.0,0.000216,4]
[362788748,1748458239368,-1272.36,0.00021616,2]
[362788749,1748458239383,-430.0,0.00021616,2]